Workbook

Sheet MASTER FILE (hidden)
B3: PENSION CALCULATION FOR THE GOVERNMENT EMPLOYEE RETIRED ON "SUPERANNUATION" | AB3: PENSION CALCULATION FOR "VOLUNTARY RETIRED" GOVERNMENT EMPLOYEE
A4: Basic Pay on Next year 1st March | B4: Date of Birth | C4: Date of Entry into Service | D4: Month & Year of Retirement | E4: Month & Year of Superannuation/ Retirement | F4: =IF(F6>=2,"Years","Year") -> Years | G4: =IF(G6>=2,"Years","Year") -> Years | H4: Net Qualify-ing Years | I4: =IF(I6>=2,"Months","Month") -> Months | J4: =IF(J6>=2,"Months","Month") -> Months | K4: No.of Qualifying service | L4: No.of Net Qualifying service (HYs) | M4: No.of Net Qualifying service (HYs) | N4: Retirement GRATUITY Admisible | O4: Retirement GRATUITY Admissible | P4: No.of Days EL at credit at the time of Retirement | Q4: EL | R4: Amount of EL Encashment | S4: Total [DCRG + Encashment] | T4: PENSION | X4: Commutation of Pension | Y4: Commutation of Pension | Z4: Family Pension | AA4: Family Pension | AB4: Voluntary Retirement Date | AC4: =IF(AC6>=2,"Years","Year") -> Year | AD4: =IF(AD6>=2,"Years","Year") -> Year | AE4: Net Qualify-ing Years | AF4: =IF(AF6>=2,"Months","Month") -> Month | AG4: =IF(AG6>=2,"Months","Month") -> Month | AH4: No.of Qualifying service | AI4: No.of Net Qualifying service (HYs) | AJ4: No.of Net Qualifying service (HYs) | AK4: Maximum Weitage of 5 years added in respect of Voluntary Retirement | AL4: Gross Qualifying Service | AM4: Net Qualifying Service | AN4: Net Qualifying Service | AO4: Retirement GRATUITY Admisible | AP4: Retirement GRATUITY Admissible | AQ4: No.of Days EL at credit at the time of Retirement | AR4: EL | AS4: Amount of EL Encashment | AT4: Total [DCRG + Encashment] | AU4: PENSION | AY4: Commutation of Pension | AZ4: Commutation of Pension | BA4: Family Pension | BB4: Family Pension | BC4: Commutation Table
T5: BASIC | U5: BASIC | V5: DA @ 25.25% | W5: TOTAL | AU5: BASIC | AV5: BASIC | AW5: DA @ 25.25% | AX5: TOTAL
A6: ='PENSION-STATE'!$H$2 -> 0 | B6: ='PENSION-STATE'!$H$3 -> 00:00:00 | C6: ='PENSION-STATE'!$H$4 -> 00:00:00 | D6: =DATEVALUE("1-1-60")+B6-2 -> 1959-12-30 | E6: =IF(B6="","",D6) -> 1959-12-30 | F6: =DATEDIF(C6,D6,"Y") -> 59 | G6: =IF(F6>33,33,F6) -> 33 | H6: =IF(C6="","",G6) -> 33 | I6: =DATEDIF(C6,D6,"Ym") -> 11 | J6: =IF(C6="","",I6) -> 11 | K6: =F6&" "&$G$4&","&" "&J6&" "&$J$4 -> 59 Years, 11 Months | L6: =IF(C6="","",IF(J6<=3,0,IF(J6<9,1,IF(J6<=12,2)))+H6*2) -> 68 | M6: =IF(L6>66,66,L6) -> 66 | N6: =IF(L6="","0",M6*A6/4) -> 0 | O6: =IF(N6="0",0,IF(N6>2000000,2000000,N6)) -> 0 | P6: 300 | Q6: =TRUNC(A6*Psh!$F$9+0.5)+A6 -> 0 | R6: =(Q6*P6)/30 -> 0 | S6: =O6+R6 -> 0 | T6: =(A6*M6)/132 -> 0 | U6: =IF(L6="","0",IF(T6<8500,8500,IF(T6>75300,75300,T6))) -> 8500 | V6: =TRUNC(U6*Psh!$F$9+0.5) -> 2975 | W6: =SUM(U6:V6) -> 11475 | X6: =(TRUNC(U6/3+0.5)*12) -> 33996 | Y6: =TRUNC(X6*9.81+0.5) -> 333501 | Z6: =TRUNC(A6*30%+0.5) -> 0 | AA6: =IF(L6="","0",IF(Z6<4800,4800,IF(Z6>23940,23940,Z6))) -> 4800 | AB6: ='PENSION-STATE'!$H$5 -> 00:00:00 | AC6: =DATEDIF(C6,AB6,"Y") -> 0 | AD6: =IF(AC6>33,33,AC6) -> 0 | AE6: =IF(C6="","",AD6) -> 0 | AF6: =DATEDIF(C6,AB6,"Ym") -> 0 | AG6: =IF(C6="","",AF6) -> 0 | AH6: =AC6&" "&$G$4&","&" "&AG6&" "&$J$4 -> 0 Years, 0 Months | AI6: =IF(C6="","",IF(AG6<=3,0,IF(AG6<9,1,IF(AG6<=12,2)))+AE6*2) -> 0 | AJ6: =IF(AI6>66,66,AI6) -> 0 | AK6: ='PENSION-STATE'!$H$6 -> 0 | AL6: =(AK6*2)+AJ6 -> 0 | AM6: =IF(AL6>66,66,AL6) -> 0 | AN6: =IF(AL6>60,60,AL6) -> 0 | AO6: =IF(AM6="","0",AM6*A6/4) -> 0 | AP6: =IF(AB6="",0,IF(AO6>2000000,2000000,AO6)) -> 0 | AQ6: ='PENSION-STATE'!$H$7 -> 0 | AR6: =TRUNC(A6*Psh!$F$9+0.5)+A6 -> 0 | AS6: =(AR6*AQ6)/30 -> 0 | AT6: =AP6+AS6 -> 0 | AU6: =TRUNC(A6*AN6)/120 -> 0 | AV6: =IF(AB6="","0",IF(AU6<8500,8500,IF(AU6>75300,75300,AU6))) -> 8500 | AW6: =TRUNC(AV6*Psh!$F$9+0.5) -> 2975 | AX6: =SUM(AV6:AW6) -> 11475 | AY6: =(TRUNC(AV6/3+0.5)*12) -> 33996 | AZ6: =TRUNC(AY6*BC6+0.5) ->  | BA6: =TRUNC(A6*30%+0.5) -> 0 | BB6: =IF(AB6="","0",IF(BA6<8500,8500,IF(BA6>45180,45180,BA6))) -> 8500 | BC6: =VLOOKUP(BD6,Psh!$U$25:$V$92,2) ->  | BD6: =DATEDIF(B6,AB6,"Y") -> 0
A9: ='PENSION-UGC'!$H$2 -> 0 | B9: ='PENSION-UGC'!$H$3 -> 00:00:00 | C9: ='PENSION-UGC'!$H$4 -> 00:00:00 | D9: =DATEVALUE("1-1-60")+B9-2 -> 1959-12-30 | E9: =IF(B9="","",D9) -> 1959-12-30 | F9: =DATEDIF(C9,D9,"Y") -> 59 | G9: =IF(F9>33,33,F9) -> 33 | H9: =IF(C9="","",G9) -> 33 | I9: =DATEDIF(C9,D9,"Ym") -> 11 | J9: =IF(C9="","",I9) -> 11 | K9: =F9&" "&$G$4&","&" "&J9&" "&$J$4 -> 59 Years, 11 Months | L9: =IF(C9="","",IF(J9<=3,0,IF(J9<9,1,IF(J9<=12,2)))+H9*2) -> 68 | M9: =IF(L9>66,66,L9) -> 66 | N9: =IF(L9="","0",M9*A9/4) -> 0 | O9: =IF(N9="0",0,IF(N9>2000000,2000000,N9)) -> 0 | P9: 300 | Q9: =TRUNC(A9*Psh!$F$9+0.5)+A9 -> 0 | R9: =(Q9*P9)/30 -> 0 | S9: =O9+R9 -> 0 | T9: =(A9*M9)/132 -> 0 | U9: =IF(L9="","0",IF(T9<8500,8500,IF(T9>75300,75300,T9))) -> 8500 | V9: =TRUNC(U9*Psh!$F$9+0.5) -> 2975 | W9: =SUM(U9:V9) -> 11475 | X9: =(TRUNC(U9/3+0.5)*12) -> 33996 | Y9: =TRUNC(X9*9.81+0.5) -> 333501 | Z9: =TRUNC(A9*30%+0.5) -> 0 | AA9: =IF(L9="","0",IF(Z9<4800,4800,IF(Z9>23940,23940,Z9))) -> 4800 | AB9: ='PENSION-UGC'!$H$5 -> 00:00:00 | AC9: =DATEDIF(C9,AB9,"Y") -> 0 | AD9: =IF(AC9>33,33,AC9) -> 0 | AE9: =IF(C9="","",AD9) -> 0 | AF9: =DATEDIF(C9,AB9,"Ym") -> 0 | AG9: =IF(C9="","",AF9) -> 0 | AH9: =AC9&" "&$G$4&","&" "&AG9&" "&$J$4 -> 0 Years, 0 Months | AI9: =IF(C9="","",IF(AG9<=3,0,IF(AG9<9,1,IF(AG9<=12,2)))+AE9*2) -> 0 | AJ9: =IF(AI9>66,66,AI9) -> 0 | AK9: . | AL9: . | AM9: =IF(AL9>66,66,AL9) -> 66 | AN9: =IF(AL9>60,60,AL9) -> 60 | AO9: =IF(AM9="","0",AM9*A9/4) -> 0 | AP9: =IF(AB9="",0,IF(AO9>2000000,2000000,AO9)) -> 0 | AQ9: ='PENSION-UGC'!$H$7 -> 0 | AR9: =TRUNC(A9*Psh!$F$9+0.5)+A9 -> 0 | AS9: =(AR9*AQ9)/30 -> 0 | AT9: =AP9+AS9 -> 0 | AU9: =TRUNC(A9*AN9)*1.04/120 -> 0 | AV9: =IF(AB9="","0",IF(AU9<8500,8500,IF(AU9>75300,75300,AU9))) -> 8500 | AW9: =TRUNC(AV9*Psh!$F$9+0.5) -> 2975 | AX9: =SUM(AV9:AW9) -> 11475 | AY9: =(TRUNC(AV9/3+0.5)*12) -> 33996 | AZ9: =TRUNC(AY9*BC9+0.5) ->  | BA9: =TRUNC(A9*30%+0.5)*1.04 -> 0 | BB9: =IF(AB9="","0",IF(BA9<8500,8500,IF(BA9>45180,45180,BA9))) -> 8500 | BC9: =VLOOKUP(BD9,Psh!$U$25:$V$92,2) ->  | BD9: =DATEDIF(B9,AB9,"Y") -> 0

Sheet PENSION-STATE
A1: 1 | B1: NAME | H1: 0
A2: 2 | B2: BASIC PAY | H2: 0
A3: 3 | B3: DATE OF BIRTH | H3: 00:00:00
A4: 4 | B4: DATE OF ENTRY INTO SERVICE | H4: 00:00:00
A5: 5 | B5: DATE OF RETIREMENT [SUPERANNUATION/VRS] | H5: 00:00:00
A6: 6 | B6: Maximum weitage of 5 years in respect of VRS | H6: 0
A7: 7 | B7: No. of Earned Leave at credit | H7: 0
A8: 8 | B8: DA | H8: 0.35
B11: PENSION CALCULATION SHEET FOR STATE SCALE
B12: PENSION, GRATUITY, COMMUTTATION OF PENSION, EL ENCASHMENT AND FAMILY PENSION
B13: CALCULATION SHEET IN RESPECT OF Sri./Smt. | G13: =$H$1 -> 0
A14: 1 | B14: QUALIFYING SERVICE: | H14: DD-MM-YYYY
B15: [a] Date of Birth | H15: ='MASTER FILE'!$B$6 -> 00:00:00
B16: [b] Deduct date of entry into service | H16: ='MASTER FILE'!$C$6 -> 00:00:00
B17: [c] Date of Retirement/Superannuation/VRS | H17: ='MASTER FILE'!$AB$6 -> 00:00:00
B18: [d] Gross Qualifying Service | H18: ='MASTER FILE'!$AH$6 -> 0 Years, 0 Months
B19: [e] Net Qualifying Service [HYS] | H19: ='MASTER FILE'!$AJ$6 -> 0
B20: [f] Age at the time of Retirement | H20: ='MASTER FILE'!$BD$6 -> 0
B21: SPECIAL ADDITIONS:
B22: [a] Special additions in respect of Govt. Servants who have been appointed under Speical Recruitment Rules (Rule 247) | H22: 0
B23: [b] Maximum weightage of 5 years are to be added in respect of Voluntary retirement cases, [Rule 285 (I) (a)] | H23: ='MASTER FILE'!$AK$6 -> 0
B24: [c] Military service upto 5 years to be added vide Rule 219b | H24: 0
H25: ='MASTER FILE'!$AN$6+(H22+H24)*2 -> 0
B26: GROSS QUALIFYING SERVICE | H26: =IF(H25>66,66,H25) -> 0
B27: DEDUCTIONS:
B28: [1] Minor Service (Rule 220) | H28: 0
B29: [2] LWA/EOL in excess of 3 years (Rule 244A) | H29: 0
B30: [3] Suspension confirmed period (Rule 250) | H30: 0
B31: NET QUALIFYING SERVICE: | H31: =H26-(H28+H29+H30) -> 0
A33: NOTE | B33: The Maximum Pension/Gratuity is earned after 33 years Qualifying Service and any service beyond this Maximum limits is ignored in calculating the length of service. Qualifying Service should be expressed terms of completed six monthly periods. For this purpose fraction of a year in the Qualifying Service should be recknoed as follows:
B35: FRACTION OF A YEAR | F35: NO.OF COMPLETED SIX MONTHLY PERIODS [Half Year]
B36: Less than 3 Months | F36: Nil
B37: 3 Months and above but less than 9 Months | F37: One
B38: 9 Months and above | F38: Two
A40: 2 | B40: PENSION FORMULA (Rule 291, 292 of KCSR) and G.O. No.FD-38-SRS-84 dated:31-08-1994.
B42: PENSION | C42: LAST EMOLUMENTS | E42: X | F42: NET Q.S. (In terms of H.Y.S.)
C43: 2 | G43: 60
B45: PENSION | C45: ='MASTER FILE'!$A$6 -> 0 | D45: X | E45: =$H$31 -> 0 | F45: = | G45: ='MASTER FILE'!$AV$6 -> 8500 | H45: BASIC | I45: DA | J45: TOTAL
C46: 2 | E46: 60 | H46: =G45 -> 8500 | I46: ='MASTER FILE'!$AW$6 -> 2975 | J46: =SUM(H46:I46) -> 11475
A48: NOTE | B48: The term emoluments includes Basic Pay, Special Pay, Interim Relief, Personal Pay (Rule 8(35), Stagnation Increment, Additional Increment Pension should be always expressed in whole Rupees fraction of a Rupees should be rounded off to next Rupee.
B50: Minimum Pension Rs.8500/- p.m. | F50: Maximum Pension is Rs.75300/- p.m.
A52: 3 | B52: RETIREMENT GRATUITY:
B54: RETIREMENT GRATUITY = | E54: Last Emoluments X Net Q.S. (H.Y.S.)
E55: 4
B57: RETIREMENT GRATUITY = | E57: =C45 -> 0 | F57: X | G57: ='MASTER FILE'!$AM$6 -> 0 | H57: = | I57: ='MASTER FILE'!$AP$6 -> 0
E58: 4
B60: [Maximum amount of Gratuity is Rs.20.00 lakhs]
A62: 4 | B62: DEATH GRATUITY:
B64: In the event of Death of a Government Servant in service irrespective of whether he was permanent or temporary, Death Gratuity is admissible at the following rates:
B66: LENTH OF SERVICE
B68: [i] Less than one year | G68: 2 Times of Emoluments
B69: [ii] One year or more but less than 5 years | G69: 6 Times of Emoluments
B70: [iii] 5 years or more but less than 20 years | G70: 12 Times of Emoluments
B71: [iv] 20 years or more | G71: Half of Emoluments for every completed 6 monthly period of Q.S. subject to a maximum of 33 times emoluments or Rs.10.00 lakhs whichever is less.
B72: The Death Gratuity is payable even to the family of a Government Servant who commits suicide.
A74: 5 | B74: COMMUTATION OF PENSION
B76: Commutation Value of Pension | D76: Pension / 3 X Commutaion Factor X 12
D78: =G45/3 -> 2833.333333 | E78: X | F78: ='MASTER FILE'!$BC$6 ->  | G78: X | H78: 12 | I78: = | J78: ='MASTER FILE'!$AZ$6 -> 
A80: NOTE | B80: Lump sum payable is related to Government Servants age. In the Table given under Rule 380, Commutation factor is given as number of years of purchase. The maximum amount that can be commuted is one-third of original pension. The amount to be commuted is to be multiplied by the number of years of purchase or Government Servants age on the next date of birth.
A82: EX | B82: If a Government Servant retired on completion of 56 years age if he apply for commutation of Rs.2500/- out of his total pension is Rs.7500/- within a year, commutation amount will be Rs.2500 x 12 x 11.10 = 333000.
A84: 6 | B84: FAMILY PENSION:
B86: Minimum Pension Rs.8500/- p.m. | F86: Maximum Pension is Rs.45180/- p.m.
C88: FAMILY PENSION = Basic Pay X 30%
B90: FAMILY PENSION = | F90: =C45 -> 0 | G90: X | H90: 0.3 | I90: = | J90: ='MASTER FILE'!$BB$6 -> 8500
A92: 7 | B92: EL ENCASHMENT
C94: BASIC PAY + DA X No.of EL / 30
B96: EL ENCASHMENT = | D96: =C45 -> 0 | E96: + | F96: =TRUNC(D96*Psh!$F$9+0.5) -> 0 | G96: X | H96: ='MASTER FILE'!$AQ$6 -> 0 | I96: = | J96: ='MASTER FILE'!$AS$6 -> 0
D97: 30
C99: 1 | D99: PENSION | H99: =J46 -> 11475
C100: 2 | D100: RETIREMENT GRATUITY | I100: =I57 -> 0
C101: 3 | D101: COMMUTATION OF PENSION | I101: =J78 -> 
C102: 4 | D102: EL ENCASHMENT | I102: =J96 -> 0
D103: TOTAL [2+3+4] | I103: =SUM(I100:I102) -> 

Sheet PENSION-UGC
A1: 1 | B1: NAME | H1: 0
A2: 2 | B2: BASIC PAY | H2: 0
A3: 3 | B3: DATE OF BIRTH | H3: 00:00:00
A4: 4 | B4: DATE OF ENTRY INTO SERVICE | H4: 00:00:00
A5: 5 | B5: DATE OF RETIREMENT [SUPERANNUATION/VRS] | H5: 00:00:00
A6: 6 | B6: Maximum weitage of 5 years in respect of VRS | H6: 0
A7: 7 | B7: No. of Earned Leave at credit | H7: 0
A8: 8 | B8: DA | H8: 0.42
B11: PENSION CALCULATION SHEET FOR UGC SCALE
B12: PENSION, GRATUITY, COMMUTTATION OF PENSION, EL ENCASHMENT AND FAMILY PENSION
B13: CALCULATION SHEET IN RESPECT OF Sri./Smt. | G13: =$H$1 -> 0
A14: 1 | B14: QUALIFYING SERVICE: | H14: DD-MM-YYYY
B15: [a] Date of Birth | H15: ='MASTER FILE'!$B$9 -> 00:00:00
B16: [b] Deduct date of entry into service | H16: 1982-07-01
B17: [c] Date of Retirement/Superannuation/VRS | H17: ='MASTER FILE'!$AB$9 -> 00:00:00
B18: [d] Gross Qualifying Service | H18: ='MASTER FILE'!$AH$9 -> 0 Years, 0 Months
B19: [e] Net Qualifying Service [HYS] | H19: ='MASTER FILE'!$AJ$9 -> 0
B20: [f] Age at the time of Retirement | H20: ='MASTER FILE'!$BD$9 -> 0
B21: SPECIAL ADDITIONS:
B22: [a] Special additions in respect of Govt. Servants who have been appointed under Speical Recruitment Rules (Rule 247) | H22: 0
B23: [b] Maximum weightage of 5 years are to be added in respect of Voluntary retirement cases, [Rule 285 (I) (a)] | H23: ='MASTER FILE'!$AK$9 -> .
B24: [c] Military service upto 5 years to be added vide Rule 219b | H24: 0
H25: ='MASTER FILE'!$AN$9+(H22+H24)*2 -> 60
B26: GROSS QUALIFYING SERVICE | H26: =IF(H25>66,66,H25) -> 60
B27: DEDUCTIONS:
B28: [1] Minor Service (Rule 220) | H28: 0
B29: [2] LWA/EOL in excess of 3 years (Rule 244A) | H29: 0
B30: [3] Suspension confirmed period (Rule 250) | H30: 0
B31: NET QUALIFYING SERVICE: | H31: =H26-(H28+H29+H30) -> 60
A33: NOTE | B33: The Maximum Pension/Gratuity is earned after 33 years Qualifying Service and any service beyond this Maximum limits is ignored in calculating the length of service. Qualifying Service should be expressed terms of completed six monthly periods. For this purpose fraction of a year in the Qualifying Service should be recknoed as follows:
B35: FRACTION OF A YEAR | F35: NO.OF COMPLETED SIX MONTHLY PERIODS [Half Year] | L35: =72330*33*1.839/66 -> 66507.435
B36: Less than 3 Months | F36: Nil
B37: 3 Months and above but less than 9 Months | F37: One
B38: 9 Months and above | F38: Two
A40: 2 | B40: PENSION FORMULA (Rule 291, 292 of KCSR) and G.O. No.FD-38-SRS-84 dated:31-08-1994.
B42: PENSION | C42: LAST EMOLUMENTS | E42: X | F42: NET Q.S. (In terms of H.Y.S.) | I42: X | J42: 1.04
C43: 2 | G43: 66
B45: PENSION | C45: ='MASTER FILE'!$A$9 -> 0 | D45: X | E45: =$H$31 -> 60 | F45: x 1.04= | G45: ='MASTER FILE'!$AV$9 -> 8500 | H45: BASIC | I45: DA | J45: TOTAL
C46: 2 | E46: 60 | H46: =G45 -> 8500 | I46: ='MASTER FILE'!$AW$9 -> 2975 | J46: =SUM(H46:I46) -> 11475
A48: NOTE | B48: The term emoluments includes Basic Pay, Special Pay, Interim Relief, Personal Pay (Rule 8(35), Stagnation Increment, Additional Increment Pension should be always expressed in whole Rupees fraction of a Rupees should be rounded off to next Rupee.
B50: Minimum Pension Rs.8500/- p.m. | F50: Maximum Pension is Rs.75300/- p.m.
A52: 3 | B52: RETIREMENT GRATUITY:
B54: RETIREMENT GRATUITY = | E54: Last Emoluments X Net Q.S. (H.Y.S.)
E55: 4
B57: RETIREMENT GRATUITY = | E57: =C45 -> 0 | F57: X | G57: ='MASTER FILE'!$AM$9 -> 66 | H57: = | I57: ='MASTER FILE'!$AP$9 -> 0
E58: 4
B60: [Maximum amount of Gratuity is Rs.20.00 lakhs]
A62: 4 | B62: DEATH GRATUITY:
B64: In the event of Death of a Government Servant in service irrespective of whether he was permanent or temporary, Death Gratuity is admissible at the following rates:
B66: LENTH OF SERVICE
B68: [i] Less than one year | G68: 2 Times of Emoluments
B69: [ii] One year or more but less than 5 years | G69: 6 Times of Emoluments
B70: [iii] 5 years or more but less than 20 years | G70: 12 Times of Emoluments
B71: [iv] 20 years or more | G71: Half of Emoluments for every completed 6 monthly period of Q.S. subject to a maximum of 33 times emoluments or Rs.10.00 lakhs whichever is less.
B72: The Death Gratuity is payable even to the family of a Government Servant who commits suicide.
A74: 5 | B74: COMMUTATION OF PENSION
B76: Commutation Value of Pension | D76: Pension / 3 X Commutaion Factor X 12
D78: =G45/3 -> 2833.333333 | E78: X | F78: ='MASTER FILE'!$BC$9 ->  | G78: X | H78: 12 | I78: = | J78: ='MASTER FILE'!$AZ$9 -> 
A80: NOTE | B80: Lump sum payable is related to Government Servants age. In the Table given under Rule 380, Commutation factor is given as number of years of purchase. The maximum amount that can be commuted is one-third of original pension. The amount to be commuted is to be multiplied by the number of years of purchase or Government Servants age on the next date of birth.
A82: EX | B82: If a Government Servant retired on completion of 56 years age if he apply for commutation of Rs.2500/- out of his total pension is Rs.7500/- within a year, commutation amount will be Rs.2500 x 12 x 11.10 = 333000.
A84: 6 | B84: FAMILY PENSION:
B86: Minimum Pension Rs.8500/- p.m. | F86: Maximum Pension is Rs.45180/- p.m.
C88: FAMILY PENSION = Basic Pay X 30% X 1.04
B90: FAMILY PENSION = | D90: =C45 -> 0 | E90: X | F90: 0.3 | G90: X | H90: 1.04 | I90: = | J90: ='MASTER FILE'!$BB$9 -> 8500
A92: 7 | B92: EL ENCASHMENT
C94: BASIC PAY + DA X No.of EL / 30
B96: EL ENCASHMENT = | D96: =C45 -> 0 | E96: + | F96: =TRUNC(D96*H8+0.5) -> 0 | G96: X | H96: ='MASTER FILE'!$AQ$9 -> 0 | I96: = | J96: ='MASTER FILE'!$AS$9 -> 0
D97: 30
C99: 1 | D99: PENSION | H99: =J46 -> 11475
C100: 2 | D100: RETIREMENT GRATUITY | I100: =I57 -> 0
C101: 3 | D101: COMMUTATION OF PENSION | I101: =J78 -> 
C102: 4 | D102: EL ENCASHMENT | I102: =J96 -> 0
D103: TOTAL [2+3+4] | I103: =SUM(I100:I102) -> 

Sheet Psh (hidden)
A1: HRA | D1: INCREMENT | F1: CITY | N1: Budget estimate for the year 2008-09 | R1: PAY-SCALE | U1: - | V1: 0 | W1: 0 | X1: 0
A2: A | B2: 0.3 | D2: 2016-03-01 | E2: 12 | F2: A | N2: Non-teaching Staff NON-PLAN | R2: - | U2: Attender | V2: 10400-16400 | W2: 300 | X2: 0
A3: B | B3: 0.2 | D3: 2016-04-01 | E3: 11 | F3: B | N3: Designation-wise Total | Q3: 1 | R3: 9600-14550 | S3: =COUNTIF('MASTER FILE'!#REF!,"9600-14550") ->  | U3: Daffedar | V3: 10400-16400 | W3: 300 | X3: 0
A4: B1 | B4: 0.1 | D4: 2016-05-01 | E4: 10 | F4: B1 | Q4: 2 | R4: 10400-16400 | S4: =COUNTIF('MASTER FILE'!#REF!,"10400-16400") ->  | U4: Driver | V4: 11600-21000 | W4: 300 | X4: 135
A5: C | B5: 0.1 | D5: 2016-06-01 | E5: 9 | F5: C | M5: 1 | N5: Superintendent | O5: =COUNTIF('MASTER FILE'!#REF!,"Suptd.") ->  | Q5: 3 | R5: 11000-19000 | S5: =COUNTIF('MASTER FILE'!#REF!,"11000-19000") ->  | U5: FDA | V5: 14550-26700 | W5: 0 | X5: 0
D6: 2016-07-01 | E6: 8 | M6: 2 | N6: FDA | O6: =COUNTIF('MASTER FILE'!#REF!,"FDA") ->  | Q6: 4 | R6: 11600-21000 | S6: =COUNTIF('MASTER FILE'!#REF!,"11600-21000") ->  | U6: FDA (A/cs) | V6: 14550-26700 | W6: 0 | X6: 0
D7: 2016-08-01 | E7: 7 | M7: 3 | N7: SDA | O7: =COUNTIF('MASTER FILE'!#REF!,"SDA") ->  | Q7: 5 | R7: 12500-24000 | S7: =COUNTIF('MASTER FILE'!#REF!,"12500-24000") ->  | U7: Lab.Asst. | V7: 10400-16400 | W7: 0 | X7: 0
A8: CCA | D8: 2016-09-01 | E8: 6 | F8: DA | H8: PH | I8: M | M8: 4 | N8: Sr.Typist | O8: =COUNTIF('MASTER FILE'!#REF!,"Sr.Typist") ->  | Q8: 6 | R8: 13600-26000 | S8: =COUNTIF('MASTER FILE'!#REF!,"13600-26000") ->  | U8: Lib.Asst. | V8: 10400-16400 | W8: 0 | X8: 0
A9: A | B9: 350 | D9: 2016-10-01 | E9: 5 | F9: ='PENSION-STATE'!$H$8 -> 0.35 | H9: - | I9: F | M9: 5 | N9: Typist | O9: =COUNTIF('MASTER FILE'!#REF!,"Typist") ->  | Q9: 7 | R9: 14550-26700 | S9: =COUNTIF('MASTER FILE'!#REF!,"14550-26700") ->  | U9: Mechanic | V9: 11600-21000 | W9: 0 | X9: 0
A10: B | B10: 250 | D10: 2016-11-01 | E10: 4 | I10: - | M10: 6 | N10: Stenographer | O10: =COUNTIF('MASTER FILE'!#REF!,"Stenographer") ->  | Q10: 8 | R10: 16000-29600 | S10: =COUNTIF('MASTER FILE'!#REF!,"16000-29600") ->  | U10: N.Watchman | V10: 9600-14550 | W10: 300 | X10: 0
A11: C | B11: 0 | D11: 2016-12-01 | E11: 3 | M11: 7 | N11: Sr.Driver | O11: =COUNTIF('MASTER FILE'!#REF!,"Sr.Driver") ->  | Q11: 9 | R11: 17650-32000 | S11: =COUNTIF('MASTER FILE'!#REF!,"17650-32000") ->  | U11: Peon | V11: 9600-14550 | W11: 300 | X11: 0
A12: D | B12: 0 | D12: 2017-01-01 | E12: 2 | M12: 8 | N12: Driver | O12: =COUNTIF('MASTER FILE'!#REF!,"Driver") ->  | Q12: 10 | R12: 19000-34500 | S12: =COUNTIF('MASTER FILE'!#REF!,"19000-34500") ->  | U12: Scavenger | V12: 9600-14550 | W12: 300 | X12: 0
D13: 2017-02-01 | E13: 1 | M13: 9 | N13: Daffedar | O13: =COUNTIF('MASTER FILE'!#REF!,"Daffedar") ->  | Q13: 11 | R13: 20000-36300 | S13: =COUNTIF('MASTER FILE'!#REF!,"20000-36300") ->  | U13: SDA | V13: 11600-21000 | W13: 0 | X13: 0
D14: - | E14: 0 | M14: 10 | N14: Attender | O14: =COUNTIF('MASTER FILE'!#REF!,"Attender") ->  | Q14: 12 | R14: 21600-40050 | S14: =COUNTIF('MASTER FILE'!#REF!,"21600-40050") ->  | U14: Sr.Driver | V14: 14550-26700 | W14: 300 | X14: 135
M15: 11 | N15: Peon | O15: =COUNTIF('MASTER FILE'!#REF!,"Peon") ->  | Q15: 13 | R15: 22800-43200 | S15: =COUNTIF('MASTER FILE'!#REF!,"22800-43200") ->  | U15: Sr.Typist | V15: 14550-26700 | W15: 0 | X15: 135
A16: 0 | B16: 0 | M16: 12 | N16: FDA (Accounts) | O16: =COUNTIF('MASTER FILE'!#REF!,"FDA (A/cs)") ->  | Q16: 14 | R16: 24000-45300 | U16: Stenographer | V16: 14550-26700 | W16: 0 | X16: 165
A17: 9600 | B17: 200 | M17: 13 | N17: Scavenger | O17: =COUNTIF('MASTER FILE'!#REF!,"Scavenger") ->  | Q17: 15 | R17: 26000-47700 | U17: Suptd. | V17: 20000-36300 | W17: 0 | X17: 0
A18: =A17+B17 -> 9800 | B18: 200 | M18: 14 | N18: Suptd. (Accounts) | O18: =COUNTIF('MASTER FILE'!#REF!,"Suptd. (A/cs)") ->  | Q18: 16 | R18: 28100-50100 | U18: Suptd. (A/cs) | V18: 20000-36300 | W18: 0 | X18: 0
A19: 10000 | B19: 200 | M19: 15 | N19: Night Watchman | O19: =COUNTIF('MASTER FILE'!#REF!,"N.Watchman") ->  | Q19: 17 | R19: 30400-51300 | U19: Typist | V19: 11600-21000 | W19: 0 | X19: 135
A20: 10200 | B20: 200 | O20: =SUM(O5:O19) ->  | Q20: 18 | R20: 32800-52500
A21: 10400 | B21: 200 | Q21: 19 | R21: 36300-53850
A22: 10600 | B22: 200 | Q22: 20 | R22: 38100-55200
A23: 10800 | B23: 200 | Q23: 21 | R23: 40050-56550 | U23: Next Date of Birth Age | V23: Year-wise Commuta- tion Value
A24: 11000 | B24: 200 | Q24: 22 | R24: 44250-60600 | U24: 60 | V24: 19.28
A25: 11200 | B25: 200 | Q25: 23 | R25: 48900-63600 | U25: 17 | V25: 19.2
A26: 11400 | B26: 200 | Q26: 24 | R26: 52500-73000 | U26: 18 | V26: 19.11
A27: 11600 | B27: 200 | Q27: 25 | R27: 56550-79800 | U27: 19 | V27: 19.01
A28: 11800 | B28: 200 | Q28: 26 | R28: ALL INDIA SCALES (IAS, IPS & IFS) | U28: 20 | V28: 18.91
A29: 12000 | B29: 250 | Q29: 27 | R29: OTHER SCALES IF ANY | U29: 21 | V29: 18.81
A30: 12250 | B30: 250 | Q30: 28 | R30: LOCAL CANDIDATES [CONSOLIDATED PAY] | U30: 22 | V30: 18.7
A31: 12500 | B31: 250 | S31: =SUM(S3:S30) ->  | U31: 23 | V31: 18.5
A32: 12750 | B32: 250 | U32: 24 | V32: 18.47
A33: 13000 | B33: 300 | U33: 25 | V33: 18.34
A34: 13300 | B34: 300 | U34: 26 | V34: 18.21
A35: 13600 | B35: 300 | U35: 27 | V35: 18.07
A36: 13900 | B36: 300 | U36: 28 | V36: 17.93
A37: 14200 | B37: 350 | U37: 29 | V37: 17.78
A38: 14550 | B38: 350 | U38: 30 | V38: 17.62
A39: 14900 | B39: 350 | U39: 31 | V39: 17.46
A40: 15250 | B40: 350 | U40: 32 | V40: 17.29
A41: 15600 | B41: 400 | U41: 33 | V41: 17.11
A42: 16000 | B42: 400 | U42: 34 | V42: 16.92
A43: 16400 | B43: 400 | U43: 35 | V43: 16.72
A44: 16800 | B44: 400 | U44: 36 | V44: 16.52
A45: 17200 | B45: 450 | U45: 37 | V45: 16.31
A46: 17650 | B46: 450 | U46: 38 | V46: 16.09
A47: 18100 | B47: 450 | U47: 39 | V47: 15.87
A48: 18550 | B48: 450 | U48: 40 | V48: 15.64
A49: 19000 | B49: 500 | U49: 41 | V49: 15.4
A50: =A49+B49 -> 19500 | B50: 500 | U50: 42 | V50: 15.5
A51: 20000 | B51: 500 | U51: 43 | V51: 14.9
A52: 20500 | B52: 500 | U52: 44 | V52: 14.64
A53: 21000 | B53: 600 | U53: 45 | V53: 14.37
A54: 21600 | B54: 600 | U54: 46 | V54: 14.1
A55: 22200 | B55: 600 | U55: 47 | V55: 13.82
A56: 22800 | B56: 600 | U56: 48 | V56: 13.54
A57: 23400 | B57: 600 | U57: 49 | V57: 13.25
A58: 24000 | B58: 600 | U58: 50 | V58: 12.95
A59: 24600 | B59: 700 | U59: 51 | V59: 12.66
A60: 25300 | B60: 700 | U60: 52 | V60: 12.35
A61: 26000 | B61: 700 | U61: 53 | V61: 12.05
A62: 26700 | B62: 700 | U62: 54 | V62: 11.73
A63: 27400 | B63: 700 | U63: 55 | V63: 11.42
A64: 28100 | B64: 700 | U64: 56 | V64: 11.1
A65: 28800 | B65: 800 | U65: 57 | V65: 10.78
A66: 29600 | B66: 800 | U66: 58 | V66: 10.46
A67: 30400 | B67: 800 | U67: 59 | V67: 10.13
A68: 31200 | B68: 800 | U68: 60 | V68: 9.81
A69: 32000 | B69: 800 | U69: 61 | V69: 9.48
A70: 32800 | B70: 800 | U70: 62 | V70: 9.15
A71: 33600 | B71: 900 | U71: 63 | V71: 8.82
A72: 34500 | B72: 900 | U72: 64 | V72: 8.5
A73: 35400 | B73: 900 | U73: 65 | V73: 8.17
A74: 36300 | B74: 900 | U74: 66 | V74: 7.85
A75: 37200 | B75: 900 | U75: 67 | V75: 7.53
A76: 38100 | B76: 900 | U76: 68 | V76: 7.22
A77: 39000 | B77: 1050 | U77: 69 | V77: 6.91
A78: 40050 | B78: 1050 | U78: 70 | V78: 6.6
A79: 41100 | B79: 1050 | U79: 71 | V79: 6.3
A80: 42150 | B80: 1050 | U80: 72 | V80: 6.01
A81: 43200 | B81: 1050 | U81: 73 | V81: 5.72
A82: =A81+B81 -> 44250 | B82: 1050 | U82: 74 | V82: 5.44
A83: 45300 | B83: 1200 | U83: 75 | V83: 5.17
A84: 46500 | B84: 1200 | U84: 76 | V84: 4.9
A85: 47700 | B85: 1200 | U85: 77 | V85: 4.65
A86: 48900 | B86: 1200 | U86: 78 | V86: 4.4
A87: 50100 | B87: 1200 | U87: 79 | V87: 4.17
A88: 51300 | B88: 1200 | U88: 80 | V88: 3.94
A89: 52500 | B89: 1350 | U89: 81 | V89: 3.72
A90: 53850 | B90: 1350 | U90: 82 | V90: 3.52
A91: 55200 | B91: 1350 | U91: 83 | V91: 3.32
A92: 56550 | B92: 1350 | U92: 84 | V92: 3.13
A93: 57900 | B93: 1350
A94: 59250 | B94: 1350
A95: 60600 | B95: 1500
A96: 62100 | B96: 1500
A97: 63600 | B97: 1500
A98: 65100 | B98: 1500
A99: 66600 | B99: 1500
A100: 68100 | B100: 1500
A101: 69600 | B101: 1700
A102: 71300 | B102: 1700
A103: 73000 | B103: 1700
A104: 74700 | B104: 1700
A105: 76400 | B105: 1700
A106: 78100 | B106: 1700
A107: 79800 | B107: 0
